fUSD/lending_fUSD_20250911
["ID","MTS","AMOUNT","RATE_DAILY","PERIOD"]
[384894592,1757620286405,-896.33,0.00027945,7]
[384894593,1757620286414,-4056.2,0.00027945,7]
[384894594,1757620286423,-280.47700022,0.00027945,7]
[384894595,1757620286432,-400.0,0.00027945,7]
[384894596,1757620286441,-400.0,0.00027945,7]
[384894597,1757620286450,-2804.21,0.00027945,7]
[384894598,1757620286460,-462.64,0.00027945,7]
[384894599,1757620286469,-1829.37,0.00027945,7]
[384894600,1757620286478,-2065.55,0.00027945,7]
[384894601,1757620286487,-2150.65,0.00027945,7]
[384894602,1757620286495,-2102.28,0.00027945,7]
[384894603,1757620286504,-400.0,0.00027945,7]
[384894604,1757620286514,-1196.73,0.00027945,7]
[384894605,1757620286523,-3613.45,0.00027945,7]
[384894606,1757620286532,-579.66,0.00027945,7]
[384894607,1757620286541,-2732.84,0.00027945,7]
[384894608,1757620286550,-406.09,0.00027945,7]
[384894609,1757620286559,-400.0,0.00027945,7]
[384894610,1757620286569,-465.09,0.00027945,7]
[384894611,1757620286578,-400.0,0.00027945,7]
[384894612,1757620286588,-1095.33,0.00027945,7]
[384894613,1757620286598,-615.1,0.00027945,7]
[384894614,1757620286607,-478.38,0.00027945,7]
[384894615,1757620286616,-400.0,0.00027945,7]
[384894616,1757620286626,-400.0,0.00027945,7]
[384894617,1757620286635,-2519.88,0.00027945,7]
[384894618,1757620286645,-400.0,0.00027945,7]
[384894619,1757620286654,-2973.76,0.00027945,7]
[384894620,1757620286663,-585.47,0.00027945,7]
[384894621,1757620286673,-1478.83,0.00027945,7]
[384894622,1757620286682,-400.0,0.00027945,7]
[384894623,1757620286692,-543.52,0.00027945,7]
[384894624,1757620286702,-1231.32,0.00027945,7]
[384894625,1757620286711,-400.0,0.00027945,7]
[384894626,1757620286720,-400.0,0.00027945,7]
[384894627,1757620286732,-679.36,0.00027945,7]
[384894628,1757620286742,-406.24,0.00027945,7]
[384894630,1757620286751,-1970.35,0.00027945,7]
[384894631,1757620286761,-2065.49,0.00027945,7]
[384894632,1757620286770,-2409.91,0.00027945,7]
[384894633,1757620286781,-750.22,0.00027945,7]
[384894634,1757620286790,-400.0,0.00027945,7]
[384894635,1757620286799,-400.0,0.00027945,7]
[384894636,1757620286809,-2254.47,0.00027945,7]
[384894637,1757620286818,-4377.18,0.00027945,7]
[384894638,1757620286828,-2180.35,0.00027945,7]
[384894639,1757620286837,-1140.48,0.00027945,7]
[384894640,1757620286847,-1983.44,0.00027945,7]
[384894641,1757620286856,-400.0,0.00027945,7]
[384894642,1757620286866,-400.0,0.00027945,7]
[384894643,1757620286875,-400.0,0.00027945,7]
[384894644,1757620286885,-400.0,0.00027945,7]
[384894645,1757620286894,-1824.04,0.00027945,7]
[384894646,1757620286903,-412.66166513,0.00027945,7]
[384894647,1757620286913,-1928.03,0.00027945,7]
[384894648,1757620286922,-400.0,0.00027945,7]
[384894649,1757620286931,-400.0,0.00027945,7]
[384894650,1757620286941,-400.0,0.00027945,7]
[384894651,1757620286951,-1404.66,0.00027945,7]
[384894652,1757620286960,-1944.39,0.00027945,7]
[384894653,1757620286970,-1105.17,0.00027945,7]
[384894654,1757620286979,-999.36,0.00027945,7]
[384894655,1757620286988,-400.0,0.00027945,7]
[384894656,1757620286998,-667.16,0.00027945,7]
[384894657,1757620287007,-1734.1,0.00027945,7]
[384894658,1757620287017,-400.0,0.00027945,7]
[384894659,1757620287027,-400.0,0.00027945,7]
[384894660,1757620287036,-400.0,0.00027945,7]
[384894661,1757620287047,-609.91,0.00027945,7]
[384894662,1757620287056,-2360.18,0.00027945,7]
[384894663,1757620287066,-536.37107769,0.00027945,7]
[384894664,1757620287075,-1451.72,0.00027945,7]
[384894665,1757620287084,-2370.54,0.00027945,7]
[384894666,1757620287093,-2040.89,0.00027945,7]
[384894667,1757620287103,-1182.57,0.00027945,7]
[384894668,1757620287112,-400.0,0.00027945,7]
[384894669,1757620287122,-6631.42,0.00027945,7]
[384894670,1757620287131,-400.0,0.00027945,7]
[384894671,1757620287141,-1865.56,0.00027945,7]
[384894672,1757620287150,-200.23378487,0.00027945,7]
[384894673,1757620287160,-400.0,0.00027945,7]
[384894674,1757620287169,-1240.37,0.00027945,7]
[384894675,1757620287178,-400.0,0.00027945,7]
[384894676,1757620287187,-400.0,0.00027945,7]
[384894677,1757620287197,-434.59,0.00027945,7]
[384894678,1757620287206,-4240.55,0.00027945,7]
[384894679,1757620287215,-1289.83,0.00027945,7]
[384894680,1757620287224,-944.8,0.00027945,7]
[384894681,1757620287234,-400.0,0.00027945,7]
[384894682,1757620287243,-2546.91,0.00027945,7]
[384894683,1757620287252,-3992.39,0.00027945,7]
[384894684,1757620287261,-2051.82,0.00027945,7]
[384894685,1757620287271,-1716.24,0.00027945,7]
[384894686,1757620287280,-2163.07,0.00027945,7]
[384894687,1757620287289,-984.79,0.00027945,7]
[384894688,1757620287299,-400.0,0.00027945,7]
[384894689,1757620287308,-654.89,0.00027945,7]
[384894690,1757620287317,-400.0,0.00027945,7]
[384894691,1757620287326,-2169.65,0.00027945,7]
[384894692,1757620287336,-5660.11,0.00027945,7]
[384894693,1757620287345,-417.69805369,0.00027945,7]
[384894694,1757620287354,-400.0,0.00027945,7]
[384894695,1757620287364,-612.32,0.00027945,7]
[384894696,1757620287373,-400.0,0.00027945,7]
[384894697,1757620287382,-440.94124493,0.00027945,7]
[384894698,1757620287391,-647.03,0.00027945,7]
[384894699,1757620287401,-2024.77,0.00027945,7]
[384894700,1757620287410,-2434.91,0.00027945,7]
[384894701,1757620287419,-400.0,0.00027945,7]
[384894702,1757620287429,-1861.05,0.00027945,7]
[384894703,1757620287438,-531.39,0.00027945,7]
[384894704,1757620287448,-400.0,0.00027945,7]
[384894705,1757620287458,-1348.2,0.00027945,7]
[384894706,1757620287468,-1899.05,0.00027945,7]
[384894707,1757620287478,-400.0,0.00027945,7]
[384894708,1757620287487,-1592.43,0.00027945,7]
[384894709,1757620287496,-3136.56,0.00027945,7]
[384894710,1757620287506,-525.85833252,0.00027945,7]
[384894711,1757620287515,-400.0,0.00027945,7]
[384894712,1757620287524,-400.0,0.00027945,7]
[384894713,1757620287533,-3473.46,0.00027945,7]
[384894714,1757620287543,-1468.72,0.00027945,7]
[384894715,1757620287553,-2225.3,0.00027945,7]
[384894716,1757620287562,-2313.26,0.00027945,7]
[384894717,1757620287572,-539.2,0.00027945,7]
[384894718,1757620287581,-3127.31,0.00027945,7]
[384894719,1757620287591,-404.99804096,0.00027945,7]
[384894720,1757620287600,-1900.6,0.00027945,7]
[384894721,1757620287610,-1440.7,0.00027945,7]
[384894722,1757620287619,-1338.68,0.00027945,7]
[384894723,1757620287628,-400.0,0.00027945,7]
[384894724,1757620287637,-1867.69,0.00027945,7]
[384894725,1757620287647,-400.0,0.00027945,7]
[384894726,1757620287656,-3099.92,0.00027945,7]
[384894727,1757620287665,-623.03,0.00027945,7]
[384894728,1757620287674,-400.0,0.00027945,7]
[384894729,1757620287683,-2289.53,0.00027945,7]
[384894730,1757620287693,-400.0,0.00027945,7]
[384894731,1757620287702,-400.0,0.00027945,7]
[384894732,1757620287711,-405.77,0.00027945,7]
[384894733,1757620287720,-2328.02,0.00027945,7]
[384894734,1757620287732,-3802.13,0.00027945,7]
[384894735,1757620287740,-8168.93,0.00027945,7]
[384894736,1757620287749,-3192.12,0.00027945,7]
[384894737,1757620287758,-2081.13,0.00027945,7]
[384894738,1757620287768,-1957.22,0.00027945,7]
[384894739,1757620287778,-2414.59,0.00027945,7]
[384894740,1757620287787,-400.0,0.00027945,7]
[384894741,1757620287795,-400.0,0.00027945,7]
[384894742,1757620287807,-1011.46,0.00027945,7]
[384894743,1757620287817,-400.0,0.00027945,7]
[384894744,1757620287826,-400.0,0.00027945,7]
[384894745,1757620287834,-1923.9,0.00027945,7]
[384894746,1757620287843,-1927.06,0.00027945,7]
[384894747,1757620287853,-1206.23,0.00027945,7]
[384894748,1757620287863,-538.55,0.00027945,7]
[384894749,1757620287874,-515.77,0.00027945,7]
[384894750,1757620287883,-400.0,0.00027945,7]
[384894751,1757620287892,-1585.5,0.00027945,7]
[384894752,1757620287901,-400.0,0.00027945,7]
[384894753,1757620287910,-400.0,0.00027945,7]
[384894754,1757620287919,-2086.74,0.00027945,7]
[384894755,1757620287927,-400.0,0.00027945,7]
[384894756,1757620287936,-400.0,0.00027945,7]
[384894757,1757620287945,-872.26,0.00027945,7]
[384894758,1757620287954,-400.0,0.00027945,7]
[384894759,1757620287963,-1808.09,0.00027945,7]
[384894760,1757620287972,-1235.05,0.00027945,7]
[384894761,1757620287981,-3364.63,0.00027945,7]
[384894762,1757620287990,-3298.29,0.00027945,7]
[384894763,1757620288000,-1616.25,0.00027945,7]
[384894764,1757620288273,-400.0,0.00027945,7]
[384894765,1757620288283,-400.0,0.00027945,7]
[384894766,1757620288294,-706.23,0.00027945,7]
[384894767,1757620288303,-1879.67,0.00027945,7]
[384894768,1757620288312,-421.17,0.00027945,7]
[384894769,1757620288321,-400.0,0.00027945,7]
[384894770,1757620288331,-400.0,0.00027945,7]
[384894771,1757620288341,-7121.58,0.00027945,7]
[384894772,1757620288351,-2297.08,0.00027945,7]
[384894773,1757620288361,-2448.08,0.00027945,7]
[384894774,1757620288371,-400.0,0.00027945,7]
[384894775,1757620288381,-637.88,0.00027945,7]
[384894776,1757620288390,-400.0,0.00027945,7]
[384894777,1757620288400,-434.53,0.00027945,7]
[384894778,1757620288411,-2037.59,0.00027945,7]
[384894779,1757620288420,-9996.04,0.00027945,7]
[384894780,1757620288429,-623.85,0.00027945,7]
[384894781,1757620288439,-1749.29,0.00027945,7]
[384894782,1757620288450,-400.0,0.00027945,7]
[384894783,1757620288459,-2018.76,0.00027945,7]
[384894784,1757620288469,-1749.43,0.00027945,7]
[384894785,1757620288479,-1210.08,0.00027945,7]
[384894786,1757620288489,-479.52,0.00027945,7]
[384894787,1757620288498,-400.0,0.00027945,7]
[384894788,1757620288507,-5456.03,0.00027945,7]
[384894789,1757620288517,-3534.98,0.00027945,7]
[384894790,1757620288527,-400.0,0.00027945,7]
[384894791,1757620288537,-1126.09,0.00027945,7]
[384894792,1757620288546,-400.0,0.00027945,7]
[384894793,1757620288556,-400.0,0.00027945,7]
[384894794,1757620288568,-2293.03,0.00027945,7]
[384894795,1757620288577,-400.0,0.00027945,7]
[384894796,1757620288588,-400.0,0.00027945,7]
[384894797,1757620288599,-408.2988473,0.00027945,7]
[384894798,1757620288609,-400.0,0.00027945,7]
[384894799,1757620288619,-416.12535256,0.00027945,7]
[384894800,1757620288629,-920.12,0.00027945,7]
[384894801,1757620288639,-400.0,0.00027945,7]
[384894802,1757620288649,-1721.29,0.00027945,7]
[384894803,1757620288659,-630.46,0.00027945,7]
[384894804,1757620288669,-400.0,0.00027945,7]
[384894805,1757620288679,-400.0,0.00027945,7]
[384894806,1757620288689,-400.0,0.00027945,7]
[384894807,1757620288699,-861.8,0.00027945,7]
[384894808,1757620288708,-431.00088122,0.00027945,7]
[384894809,1757620288718,-791.87,0.00027945,7]
[384894810,1757620288727,-400.0,0.00027945,7]
[384894811,1757620288740,-400.0,0.00027945,7]
[384894812,1757620288750,-480.24,0.00027945,7]
[384894813,1757620288759,-400.0,0.00027945,7]
[384894814,1757620288770,-529.74,0.00027945,7]
[384894815,1757620288780,-400.0,0.00027945,7]
[384894816,1757620288789,-1594.87144711,0.00027945,7]
[384894817,1757620290443,-166.83,0.00026619,2]
[384894818,1757620290453,-157.8207938,0.00027382,2]
[384894819,1757620290462,-818.7549819,0.00027394,2]
[384894826,1757620400399,2000.0,0.00030137,120]
[384894854,1757620603528,264.903,0.00027397,120]
[384894858,1757620617068,1000.0,0.00030137,120]
[384894868,1757620686434,153.47,0.00016438,2]
[384894880,1757620872685,482.29,0.00026256,120]
[384894881,1757620872882,482.29,0.00029538,120]
[384894888,1757620996036,2000.0,0.00030137,120]
[384894889,1757621005491,153.52,0.00013141,2]
[384894903,1757621146284,-151.0,0.0002208,2]
[384894904,1757621146306,-48.30760663,0.00023429,2]
[384894905,1757621148851,-267.11086567,0.00023429,2]
[384894906,1757621148874,-153.47,0.00023529,2]
[384894914,1757621204177,2000.0,0.00027397,120]
[384894916,1757621204932,2000.0,0.00027397,120]
[384894917,1757621205164,1442.296,0.00027397,120]
[384894918,1757621205718,858.042,0.00027397,120]
[384894920,1757621215538,644.96,0.00030136,120]
[384894926,1757621431735,697.07,0.00025954,120]
[384894927,1757621431867,-150.0,0.00024633,2]
[384894928,1757621431876,-705.36664203,0.000249,2]
[384894929,1757621431922,-3661.71836795,0.000249,2]
[384894930,1757621431937,-352.92363,0.0002582,2]
[384894931,1757621431946,-205.96,0.00025933,2]
[384894932,1757621431956,-165.18,0.00025943,2]
[384894933,1757621431965,-1353.75,0.00026,2]
[384894934,1757621431979,-150.0,0.00026001,4]
[384894935,1757621431989,-1200.0,0.00026134,2]
[384894936,1757621431999,-300.0,0.00026134,2]
[384894937,1757621432009,-300.0,0.00026134,2]
[384894938,1757621432019,-515.37529716,0.00026135,2]
[384894939,1757621432028,-160.0,0.00026135,2]
[384894940,1757621432038,-160.0,0.00026135,2]
[384894941,1757621432047,-160.0,0.00026135,2]
[384894942,1757621432057,-338.65,0.00026151,2]
[384894943,1757621432067,-156.27,0.00026288,2]
[384894944,1757621432076,-666.0,0.00026339,3]
[384894945,1757621432085,-150.0,0.00026339,7]
[384894946,1757621432096,-250.0,0.00026339,2]
[384894947,1757621432105,-800.0,0.00026438,7]
[384894948,1757621432115,-394.21,0.00026678,2]
[384894949,1757621432124,-166.58710632,0.00026819,2]
[384894950,1757621432133,-168.0,0.0002683,2]
[384894951,1757621432143,-166.58710632,0.00026863,2]
[384894952,1757621432152,-166.58710632,0.00026867,2]
[384894953,1757621432161,-166.58710632,0.00026878,2]
[384894954,1757621432170,-166.58710632,0.00026909,2]
[384894955,1757621432179,-166.58710632,0.00026918,2]
[384894956,1757621432189,-166.58710632,0.00026953,2]
[384894957,1757621432198,-151.0,0.00027,7]
[384894958,1757621432207,-236.0,0.00027,2]
[384894959,1757621432216,-1702.47050038,0.00027062,2]
[384894960,1757621432228,-2464.52949962,0.00027062,2]
[384894961,1757621432238,-257.91778498,0.00027081,2]
[384894962,1757621432247,-151.0,0.00027081,2]
[384894963,1757621432256,-300.0,0.00027096,2]
[384894965,1757621432267,-15060.26054824,0.00027097,2]
[384894967,1757621432278,-3441.54672092,0.00027097,2]
[384894969,1757621432288,-212.89373682,0.00027119,2]
[384894971,1757621432297,-1000.0,0.00027197,2]
[384894973,1757621432306,-1963.41590986,0.00027197,2]
[384894977,1757621432329,-502.74409014,0.00027197,2]
[384894979,1757621432338,-1000.0,0.00027197,2]
[384894981,1757621432347,-3156.5190775,0.00027197,2]
[384894983,1757621432356,-602.46600513,0.00027197,12]
[384894985,1757621432366,-157.8207938,0.00027197,2]
[384894987,1757621432375,-205.96,0.00027229,2]
[384894988,1757621432384,-2825.89528161,0.0002723,2]
[384894990,1757621432393,-1003.39802384,0.00027296,2]
[384894992,1757621432403,-521.16929785,0.00027296,2]
[384894994,1757621432413,-500.0,0.00027296,2]
[384894996,1757621432422,-500.0,0.00027296,2]
[384894998,1757621432431,-500.0,0.00027296,2]
[384895000,1757621432440,-150.1160699,0.00027296,2]
[384895002,1757621432449,-159.39932341,0.00027296,2]
[384895004,1757621432458,-500.0,0.00027296,2]
[384895006,1757621432467,-500.0,0.00027296,2]
[384895007,1757621432476,-500.0,0.00027296,2]
[384895009,1757621432485,-500.0,0.00027296,2]
[384895011,1757621432495,-500.0,0.00027296,2]
[384895013,1757621432504,-500.0,0.00027296,2]
[384895015,1757621432513,-500.0,0.00027296,2]
[384895017,1757621432522,-500.0,0.00027296,2]
[384895019,1757621432531,-500.0,0.00027296,2]
[384895021,1757621432541,-250.0,0.00027296,2]
[384895022,1757621432550,-335.31989725,0.00027296,2]
[384895024,1757621432559,-14213.45894565,0.00027297,2]
[384895028,1757621432590,-256.68,0.00027062,2]
[384895031,1757621432605,-368.182,0.00027062,2]
[384895033,1757621432614,-10819.51810226,0.00027297,2]
[384895311,1757621437732,-400.0,0.00027297,2]
[384895313,1757621437786,-1034.77579321,0.00027297,2]
[384895314,1757621437839,-500.0,0.00027297,2]
[384895315,1757621437997,-1031.03623851,0.00027297,2]
[384895316,1757621438009,-681.90173167,0.00027297,2]
[384895317,1757621438052,-2702.86530885,0.00027297,2]
[384895319,1757621438110,-6243.20177797,0.00027297,2]
[384895346,1757621439789,-108108.50791976,0.00027297,2]
[384895347,1757621439843,-1559.93427223,0.00027297,2]
[384895348,1757621439854,-686.61376422,0.00027297,2]
[384895349,1757621439951,-433.18306296,0.00027297,2]
[384895350,1757621439962,-3981.1185782,0.00027297,2]
[384895351,1757621439974,-19531.81575266,0.00027297,2]
[384895352,1757621439986,-307.2432604,0.00027297,2]
[384895353,1757621440041,-17797.26743609,0.00027297,2]
[384895354,1757621440149,-554.73882767,0.00027297,2]
[384895356,1757621440168,-654.08962769,0.00027297,2]
[384895358,1757621440177,-5000.0,0.00027297,2]
[384895360,1757621440186,-196.10538598,0.00027297,2]
[384895362,1757621440195,-161.13871709,0.00027297,2]
[384895363,1757621440205,-3156.5190775,0.00027299,2]
[384895365,1757621440214,-1353.75,0.000273,2]
[384895367,1757621440223,-150.0,0.0002737,4]
[384895369,1757621440233,-24669.04,0.00027371,2]
[384895371,1757621440241,-502.99899146,0.00027373,2]
[384895372,1757621440251,-500.0,0.00027373,2]
[384895374,1757621440260,-500.0,0.00027373,2]
[384895376,1757621440278,-500.0,0.00027373,2]
[384895379,1757621440288,-255.096,0.00027382,16]
[384895381,1757621440297,-193.84503357,0.00027387,2]
[384895383,1757621440306,-156.34023609,0.00027394,2]
[384895385,1757621440315,-300.0,0.00027396,10]
[384895387,1757621440324,-802.71299493,0.00027396,2]
[384895389,1757621440333,-1077.0,0.00027397,2]
[384895391,1757621440343,-153.798117,0.00027397,7]
[384895393,1757621440352,-590.53,0.00027397,7]
[384895395,1757621440361,-470.853112,0.00027397,7]
[384895398,1757621440370,-361.872685,0.00027397,7]
[384895401,1757621440379,-400.0,0.00027397,7]
[384895403,1757621440388,-400.0,0.00027397,7]
[384895406,1757621440398,-400.0,0.00027397,7]
[384895409,1757621440407,-805.58,0.00027397,7]
[384895412,1757621440416,-400.0,0.00027397,7]
[384895414,1757621440425,-400.0,0.00027397,7]
[384895416,1757621440434,-242.13944153,0.00027397,7]
[384895418,1757621440443,-701.2,0.00027397,7]
[384895436,1757621440714,-306.43046897,0.00027397,7]
[384895437,1757621440724,-1350.2,0.00027397,7]
[384895438,1757621440734,-400.0,0.00027397,7]
[384895439,1757621440743,-105.98165295,0.00027397,7]
[384895440,1757621440756,-294.01834705,0.00027397,7]
[384895441,1757621440766,-132.64209373,0.00027397,7]
[384895442,1757621440777,-267.35790627,0.00027397,7]
[384895443,1757621440787,-180.664256,0.00027397,7]
[384895444,1757621440796,-400.0,0.00027397,7]
[384895445,1757621440807,-8.14640262,0.00027397,7]
[384895449,1757621440838,-479.51359738,0.00027397,7]
[384895451,1757621440847,-400.0,0.00027397,7]
[384895453,1757621440857,-152.366644,0.00027397,7]
[384895455,1757621440867,-400.0,0.00027397,7]
[384895457,1757621440876,-159.405892,0.00027397,7]
[384895459,1757621440885,-400.0,0.00027397,7]
[384895461,1757621440895,-842.48,0.00027397,7]
[384895463,1757621440904,-504.21,0.00027397,7]
[384895465,1757621440913,-1130.91,0.00027397,7]
[384895467,1757621440923,-400.0,0.00027397,7]
[384895469,1757621440932,-400.0,0.00027397,7]
[384895471,1757621440941,-439.98,0.00027397,7]
[384895473,1757621440951,-557.45,0.00027397,7]
[384895475,1757621440960,-400.0,0.00027397,7]
[384895477,1757621440969,-1306.12,0.00027397,7]
[384895479,1757621440979,-721.14,0.00027397,7]
[384895481,1757621440988,-895.53,0.00027397,7]
[384895483,1757621440998,-1819.02,0.00027397,7]
[384895485,1757621441008,-400.0,0.00027397,7]
[384895487,1757621441018,-400.0,0.00027397,7]
[384895489,1757621441028,-400.0,0.00027397,7]
[384895491,1757621441037,-400.0,0.00027397,7]
[384895493,1757621441047,-400.0,0.00027397,7]
[384895495,1757621441056,-739.61,0.00027397,7]
[384895497,1757621441066,-795.56,0.00027397,7]
[384895499,1757621441075,-400.0,0.00027397,7]
[384895501,1757621441086,-400.0,0.00027397,7]
[384895503,1757621441095,-724.2,0.00027397,7]
[384895505,1757621441105,-441.87735759,0.00027397,7]
[384895507,1757621441114,-400.0,0.00027397,7]
[384895509,1757621441123,-998.49,0.00027397,7]
[384895511,1757621441132,-400.0,0.00027397,7]
[384895513,1757621441142,-400.0,0.00027397,7]
[384895515,1757621441151,-400.0,0.00027397,7]
[384895517,1757621441159,-1304.63,0.00027397,7]
[384895519,1757621441168,-400.0,0.00027397,7]
[384895521,1757621441177,-417.63,0.00027397,7]
[384895523,1757621441187,-690.23,0.00027397,7]
[384895525,1757621441196,-400.0,0.00027397,7]
[384895527,1757621441204,-415.63815874,0.00027397,7]
[384895529,1757621441214,-408.37,0.00027397,7]
[384895531,1757621441223,-406.6010183,0.00027397,7]
[384895533,1757621441232,-400.0,0.00027397,7]
[384895535,1757621441242,-400.0,0.00027397,7]
[384895537,1757621441251,-412.93633344,0.00027397,7]
[384895539,1757621441260,-407.28700418,0.00027397,7]
[384895541,1757621441273,-400.0,0.00027397,7]
[384895543,1757621441283,-903.68,0.00027397,7]
[384895545,1757621441291,-1202.68,0.00027397,7]
[384895547,1757621441300,-806.57,0.00027397,7]
[384895549,1757621441310,-981.98,0.00027397,7]
[384895551,1757621441319,-1142.93,0.00027397,7]
[384895553,1757621441328,-400.0,0.00027397,7]
[384895555,1757621441338,-400.0,0.00027397,7]
[384895557,1757621441347,-400.0,0.00027397,7]
[384895559,1757621441356,-400.0,0.00027397,7]
[384895561,1757621441365,-400.0,0.00027397,7]
[384895563,1757621441375,-514.65,0.00027397,7]
[384895565,1757621441383,-400.0,0.00027397,7]
[384895567,1757621441392,-400.0,0.00027397,7]
[384895569,1757621441401,-1591.05,0.00027397,7]
[384895571,1757621441410,-1364.91,0.00027397,7]
[384895573,1757621441419,-523.17,0.00027397,7]
[384895575,1757621441429,-400.0,0.00027397,7]
[384895577,1757621441438,-400.0,0.00027397,7]
[384895579,1757621441447,-1197.78,0.00027397,7]
[384895581,1757621441457,-400.0,0.00027397,7]
[384895583,1757621441466,-402.28771354,0.00027397,7]
[384895585,1757621441476,-400.0,0.00027397,7]
[384895587,1757621441486,-405.34469897,0.00027397,7]
[384895589,1757621441495,-400.0,0.00027397,2]
[384895591,1757621441504,-400.0,0.00027397,7]
[384895593,1757621441513,-400.0,0.00027397,7]
[384895595,1757621441523,-163.40282019,0.00027397,7]
[384895597,1757621441532,-400.0,0.00027397,7]
[384895599,1757621441541,-400.0,0.00027397,7]
[384895601,1757621441550,-1000.0,0.00027397,7]
[384895603,1757621441559,-400.0,0.00027397,7]
[384895604,1757621441568,-400.0,0.00027397,7]
[384895606,1757621441578,-400.0,0.00027397,7]
[384895608,1757621441587,-400.0,0.00027397,7]
[384895609,1757621441595,-400.0,0.00027397,7]
[384895611,1757621441604,-412.33,0.00027397,7]
[384895614,1757621441616,-400.0,0.00027397,7]
[384895616,1757621441626,-400.0,0.00027397,7]
[384895618,1757621441635,-400.0,0.00027397,7]
[384895620,1757621441644,-400.0,0.00027397,7]
[384895622,1757621441652,-2051.09,0.00027397,7]
[384895623,1757621441661,-1123.11,0.00027397,7]
[384895625,1757621441671,-599.29,0.00027397,7]
[384895627,1757621441680,-1698.22,0.00027397,7]
[384895629,1757621441689,-500.0,0.00027397,7]
[384895631,1757621441698,-500.0,0.00027397,7]
[384895633,1757621441707,-500.0,0.00027397,7]
[384895636,1757621441716,-400.0,0.00027397,7]
[384895637,1757621441725,-400.0,0.00027397,7]
[384895640,1757621441736,-894.41,0.00027397,7]
[384895642,1757621441745,-897.13,0.00027397,7]
[384895644,1757621441754,-601.4,0.00027397,7]
[384895645,1757621441763,-400.0,0.00027397,7]
[384895648,1757621441772,-400.0,0.00027397,7]
[384895650,1757621441781,-726.55,0.00027397,7]
[384895652,1757621441790,-524.33,0.00027397,7]
[384895654,1757621441800,-400.0,0.00027397,7]
[384895656,1757621441808,-628.83,0.00027397,7]
[384895658,1757621441818,-588.99,0.00027397,7]
[384895660,1757621441827,-1526.13,0.00027397,7]
[384895662,1757621441836,-662.65,0.00027397,7]
[384895663,1757621441845,-957.15,0.00027397,7]
[384895665,1757621441855,-407.65484357,0.00027397,7]
[384895668,1757621441864,-713.06,0.00027397,7]
[384895669,1757621441874,-400.0,0.00027397,7]
[384895671,1757621441883,-400.0,0.00027397,7]
[384895674,1757621441894,-487.05,0.00027397,7]
[384895676,1757621441903,-414.3515803,0.00027397,7]
[384895678,1757621441912,-400.0,0.00027397,7]
[384895680,1757621441922,-400.0,0.00027397,7]
[384895682,1757621441931,-400.0,0.00027397,7]
[384895684,1757621441941,-400.0,0.00027397,7]
[384895686,1757621441950,-400.0,0.00027397,7]
[384895688,1757621441959,-400.0,0.00027397,7]
[384895690,1757621441968,-400.0,0.00027397,7]
[384895691,1757621441977,-464.73,0.00027397,7]
[384895692,1757621441986,-400.0,0.00027397,7]
[384895693,1757621441995,-1441.73,0.00027397,7]
[384895694,1757621442005,-505.45620169,0.00027397,7]
[384895695,1757621442014,-400.0,0.00027397,7]
[384895696,1757621442023,-400.0,0.00027397,7]